fUST/lending_fUST_20260107
["ID","MTS","AMOUNT","RATE_DAILY","PERIOD"]
[400699428,1767783048239,-500.0,0.00027397,2]
[400699429,1767783048248,-151.0,0.00027397,7]
[400699430,1767783048258,-354.03723532,0.00027397,2]
[400699431,1767783048267,-472.0779569,0.00027397,2]
[400699432,1767783048276,-151.0,0.00027397,7]
[400699433,1767783048286,-500.0,0.00027397,2]
[400699434,1767783048295,-500.0,0.00027397,2]
[400699435,1767783048304,-151.0,0.00027397,7]
[400699436,1767783048314,-536.59529358,0.00027397,2]
[400699437,1767783048323,-348.69291317,0.00027397,2]
[400699438,1767783048332,-500.0,0.00027397,2]
[400699439,1767783048342,-506.15978028,0.00027397,2]
[400699440,1767783048351,-204.4507679,0.00027397,2]
[400699441,1767783048360,-244.48670359,0.00027397,2]
[400699442,1767783048370,-275.89701196,0.00027397,2]
[400699443,1767783048379,-500.0,0.00027397,2]
[400699444,1767783048389,-500.0,0.00027397,2]
[400699445,1767783048398,-1000.0,0.00027397,2]
[400699446,1767783048407,-500.0,0.00027397,2]
[400699447,1767783048416,-500.0,0.00027397,2]
[400699448,1767783048426,-500.0,0.00027397,2]
[400699449,1767783048435,-500.0,0.00027397,2]
[400699450,1767783048443,-489.4825677,0.00027397,2]
[400699451,1767783048452,-151.0,0.00027397,7]
[400699452,1767783048461,-151.0,0.00027397,7]
[400699453,1767783048471,-500.0,0.00027397,2]
[400699454,1767783048480,-500.0,0.00027397,2]
[400699455,1767783048489,-448.47784493,0.00027397,2]
[400699456,1767783048499,-500.0,0.00027397,2]
[400699457,1767783048508,-266.0311333,0.00027397,2]
[400699458,1767783048517,-500.0,0.00027397,2]
[400699459,1767783048527,-574.83927761,0.00027397,2]
[400699460,1767783048536,-500.0,0.00027397,2]
[400699461,1767783048545,-500.0,0.00027397,2]
[400699462,1767783048555,-151.0,0.00027397,7]
[400699463,1767783048564,-151.0,0.00027397,7]
[400699464,1767783048573,-500.0,0.00027397,2]
[400699465,1767783048582,-500.0,0.00027397,2]
[400699466,1767783048592,-500.0,0.00027397,2]
[400699467,1767783048601,-500.0,0.00027397,2]
[400699468,1767783048610,-285.44153399,0.00027397,2]
[400699469,1767783048621,-500.0,0.00027397,2]
[400699470,1767783048630,-500.0,0.00027397,2]
[400699471,1767783048639,-500.0,0.00027397,2]
[400699472,1767783048647,-425.02340228,0.00027397,2]
[400699473,1767783048657,-206.40672607,0.00027397,2]
[400699474,1767783048666,-500.0,0.00027397,2]
[400699475,1767783048676,-500.0,0.00027397,2]
[400699476,1767783048685,-565.79664232,0.00027397,2]
[400699477,1767783048694,-500.0,0.00027397,2]
[400699478,1767783048703,-500.0,0.00027397,2]
[400699479,1767783048712,-500.0,0.00027397,2]
[400699480,1767783048721,-460.75990773,0.00027397,2]
[400699481,1767783048731,-220.85995408,0.00027397,2]
[400699482,1767783048739,-500.0,0.00027397,2]
[400699483,1767783048749,-500.0,0.00027397,2]
[400699484,1767783048758,-546.87196648,0.00027397,2]
[400699485,1767783048767,-500.0,0.00027397,2]
[400699486,1767783048776,-500.0,0.00027397,2]
[400699487,1767783048785,-500.0,0.00027397,2]
[400699488,1767783048794,-500.0,0.00027397,2]
[400699489,1767783048804,-500.0,0.00027397,2]
[400699490,1767783048813,-500.0,0.00027397,2]
[400699491,1767783048822,-500.0,0.00027397,2]
[400699492,1767783048831,-500.0,0.00027397,2]
[400699493,1767783048841,-500.0,0.00027397,2]
[400699494,1767783048850,-500.0,0.00027397,2]
[400699495,1767783048859,-151.0,0.00027397,7]
[400699496,1767783048868,-500.0,0.00027397,2]
[400699497,1767783048878,-283.23572878,0.00027397,2]
[400699498,1767783048887,-558.54756524,0.00027397,2]
[400699499,1767783048896,-500.0,0.00027397,2]
[400699500,1767783048907,-500.0,0.00027397,2]
[400699501,1767783048916,-500.0,0.00027397,2]
[400699502,1767783048926,-500.0,0.00027397,2]
[400699503,1767783048935,-500.0,0.00027397,2]
[400699504,1767783048945,-500.0,0.00027397,2]
[400699505,1767783049084,-500.0,0.00027397,2]
[400699506,1767783049094,-563.61353423,0.00027397,2]
[400699507,1767783049104,-151.0,0.00027397,7]
[400699508,1767783049114,-500.0,0.00027397,2]
[400699509,1767783049123,-151.0,0.00027397,7]
[400699510,1767783049136,-500.0,0.00027397,2]
[400699511,1767783049145,-701.45,0.00027397,2]
[400699512,1767783049155,-500.0,0.00027397,2]
[400699513,1767783049164,-509.25652376,0.00027397,2]
[400699514,1767783049174,-500.0,0.00027397,2]
[400699515,1767783049184,-500.0,0.00027397,2]
[400699516,1767783049193,-151.0,0.00027397,7]
[400699517,1767783049203,-565.35155134,0.00027397,2]
[400699518,1767783049213,-533.03275713,0.00027397,2]
[400699519,1767783049222,-496.70020353,0.00027397,2]
[400699520,1767783049231,-378.27229026,0.00027397,2]
[400699521,1767783049241,-500.0,0.00027397,2]
[400699522,1767783049250,-500.0,0.00027397,2]
[400699523,1767783049259,-500.0,0.00027397,2]
[400699524,1767783049268,-500.0,0.00027397,2]
[400699525,1767783049277,-500.0,0.00027397,2]
[400699526,1767783049286,-567.74134329,0.00027397,2]
[400699527,1767783049296,-500.0,0.00027397,2]
[400699528,1767783049306,-571.86771589,0.00027397,2]
[400699529,1767783049316,-500.0,0.00027397,2]
[400699530,1767783049325,-461.56079082,0.00027397,2]
[400699531,1767783049335,-500.0,0.00027397,2]
[400699532,1767783049343,-500.0,0.00027397,2]
[400699533,1767783049354,-500.0,0.00027397,2]
[400699534,1767783049364,-323.54612143,0.00027397,2]
[400699535,1767783049373,-504.72287872,0.00027397,2]
[400699536,1767783049384,-500.0,0.00027397,2]
[400699537,1767783049394,-500.0,0.00027397,2]
[400699538,1767783049404,-151.0,0.00027397,7]
[400699539,1767783049413,-500.0,0.00027397,2]
[400699540,1767783049423,-538.91545747,0.00027397,2]
[400699541,1767783049432,-302.57630642,0.00027397,2]
[400699542,1767783049442,-500.0,0.00027397,2]
[400699543,1767783049451,-500.0,0.00027397,2]
[400699544,1767783049460,-482.03771904,0.00027397,2]
[400699545,1767783049470,-567.9849075,0.00027397,2]
[400699546,1767783049479,-500.0,0.00027397,2]
[400699547,1767783049488,-500.0,0.00027397,2]
[400699548,1767783049498,-500.0,0.00027397,2]
[400699549,1767783049508,-500.0,0.00027397,2]
[400699550,1767783049518,-500.0,0.00027397,2]
[400699551,1767783049527,-500.0,0.00027397,2]
[400699552,1767783049538,-411.68091884,0.00027397,2]
[400699553,1767783049547,-487.15250721,0.00027397,2]
[400699554,1767783049557,-330.48636808,0.00027397,2]
[400699555,1767783049566,-500.0,0.00027397,2]
[400699556,1767783049576,-548.31395731,0.00027397,2]
[400699557,1767783049587,-500.0,0.00027397,2]
[400699558,1767783049596,-353.312555,0.00027397,2]
[400699559,1767783049605,-500.0,0.00027397,2]
[400699560,1767783049614,-500.0,0.00027397,2]
[400699561,1767783049624,-500.0,0.00027397,2]
[400699562,1767783049633,-500.0,0.00027397,2]
[400699563,1767783049643,-500.0,0.00027397,2]
[400699564,1767783049652,-500.0,0.00027397,2]
[400699565,1767783049661,-500.0,0.00027397,2]
[400699566,1767783049671,-457.91232299,0.00027397,2]
[400699567,1767783049680,-336.430075,0.00027397,2]
[400699568,1767783049689,-500.0,0.00027397,2]
[400699569,1767783049699,-500.0,0.00027397,2]
[400699570,1767783049708,-247.13704259,0.00027397,2]
[400699571,1767783049718,-509.97091486,0.00027397,2]
[400699572,1767783049727,-518.82361923,0.00027397,2]
[400699573,1767783049735,-500.0,0.00027397,2]
[400699574,1767783049745,-500.0,0.00027397,2]
[400699575,1767783049756,-500.0,0.00027397,2]
[400699576,1767783049767,-500.0,0.00027397,2]
[400699577,1767783049778,-1000.0,0.00027397,2]
[400699578,1767783049787,-500.0,0.00027397,2]
[400699579,1767783049796,-500.0,0.00027397,2]
[400699580,1767783049806,-500.0,0.00027397,2]
[400699581,1767783049815,-429.3256291,0.00027397,2]
[400699582,1767783049825,-500.0,0.00027397,2]
[400699583,1767783049834,-500.0,0.00027397,2]
[400699584,1767783049843,-393.32959088,0.00027397,2]
[400699585,1767783049851,-517.01871719,0.00027397,2]
[400699586,1767783049860,-500.0,0.00027397,2]
[400699587,1767783049869,-231.38579924,0.00027397,2]
[400699588,1767783049878,-500.0,0.00027397,2]
[400699589,1767783049887,-258.82529302,0.00027397,2]
[400699590,1767783049897,-397.00088279,0.00027397,2]
[400699591,1767783049905,-500.0,0.00027397,2]
[400699592,1767783049914,-500.0,0.00027397,2]
[400699593,1767783049924,-274.78199584,0.00027397,2]
[400699594,1767783049933,-500.0,0.00027397,2]
[400699595,1767783049942,-566.66989012,0.00027397,2]
[400699596,1767783049951,-500.0,0.00027397,2]
[400699597,1767783049960,-500.0,0.00027397,2]
[400699598,1767783049969,-151.0,0.00027397,7]
[400699599,1767783049978,-151.0,0.00027397,7]
[400699600,1767783049987,-500.0,0.00027397,2]
[400699601,1767783049996,-565.76829321,0.00027397,2]
[400699602,1767783050006,-500.0,0.00027397,2]
[400699603,1767783050015,-500.0,0.00027397,2]
[400699604,1767783050025,-500.0,0.00027397,2]
[400699605,1767783050035,-500.0,0.00027397,2]
[400699606,1767783050044,-500.0,0.00027397,2]
[400699607,1767783050053,-500.0,0.00027397,2]
[400699608,1767783050062,-500.0,0.00027397,2]
[400699609,1767783050072,-500.0,0.00027397,2]
[400699610,1767783050080,-500.0,0.00027397,2]
[400699611,1767783050089,-500.0,0.00027397,2]
[400699612,1767783050098,-500.0,0.00027397,2]
[400699613,1767783050107,-500.0,0.00027397,2]
[400699614,1767783050117,-500.0,0.00027397,2]
[400699615,1767783050127,-191.0,0.00027397,2]
[400699616,1767783050140,-500.0,0.00027397,2]
[400699617,1767783050148,-500.0,0.00027397,2]
[400699618,1767783050158,-500.0,0.00027397,2]
[400699619,1767783050167,-151.0,0.00027397,7]
[400699620,1767783050178,-513.83486769,0.00027397,2]
[400699621,1767783050187,-500.0,0.00027397,2]
[400699622,1767783050196,-500.0,0.00027397,2]
[400699623,1767783050207,-421.02480079,0.00027397,2]
[400699624,1767783050216,-218.86382134,0.00027397,2]
[400699625,1767783050227,-500.0,0.00027397,2]
[400699626,1767783050236,-151.0,0.00027397,7]
[400699627,1767783050245,-500.0,0.00027397,2]
[400699628,1767783050256,-397.14508349,0.00027397,2]
[400699629,1767783050265,-500.0,0.00027397,2]
[400699630,1767783050274,-500.0,0.00027397,2]
[400699631,1767783050284,-500.0,0.00027397,2]
[400699632,1767783050294,-500.0,0.00027397,2]
[400699633,1767783050305,-369.84563094,0.00027397,2]
[400699634,1767783050315,-500.0,0.00027397,2]
[400699635,1767783050326,-459.71283558,0.00027397,2]
[400699636,1767783050336,-500.0,0.00027397,2]
[400699637,1767783050345,-221.6668596,0.00027397,2]
[400699638,1767783050354,-500.0,0.00027397,2]
[400699639,1767783050363,-266.46290101,0.00027397,2]
[400699640,1767783050372,-257.75144665,0.00027397,2]
[400699641,1767783050382,-500.0,0.00027397,2]
[400699642,1767783050395,-318.72988081,0.00027397,2]
[400699643,1767783050405,-601.36,0.00027397,2]
[400699644,1767783050416,-296.57482557,0.00027397,2]
[400699645,1767783050425,-500.0,0.00027397,2]
[400699646,1767783050436,-500.0,0.00027397,2]
[400699647,1767783050445,-500.0,0.00027397,2]
[400699648,1767783050455,-500.0,0.00027397,2]
[400699649,1767783050464,-248.88132045,0.00027397,2]
[400699650,1767783050473,-509.29429867,0.00027397,2]
[400699651,1767783050483,-500.0,0.00027397,2]
[400699652,1767783050492,-500.0,0.00027397,2]
[400699653,1767783050501,-300.51321961,0.00027397,2]
[400699654,1767783050511,-195.03199849,0.00027397,2]
[400699655,1767783050522,-500.0,0.00027397,2]
[400699656,1767783050531,-582.84,0.00027397,2]
[400699657,1767783050541,-500.0,0.00027397,2]
[400699658,1767783050550,-287.99941463,0.00027397,2]
[400699659,1767783050560,-202.31547305,0.00027397,2]
[400699660,1767783050570,-200.0,0.00027397,2]
[400699661,1767783050579,-164.8466183,0.00027397,2]
[400699662,1767783050589,-271.44586454,0.00027397,2]
[400699663,1767783050598,-285.61445838,0.00027397,2]
[400699664,1767783050608,-471.39829619,0.00027397,2]
[400699665,1767783050619,-500.0,0.00027397,2]
[400699666,1767783050628,-480.41975781,0.00027397,2]
[400699667,1767783050638,-477.66225869,0.00027397,2]
[400699668,1767783050647,-593.0958547,0.00027397,2]
[400699669,1767783050656,-500.0,0.00027397,2]
[400699670,1767783050666,-500.0,0.00027397,2]
[400699671,1767783050676,-500.0,0.00027397,2]
[400699672,1767783050685,-500.0,0.00027397,2]
[400699673,1767783050694,-454.06231089,0.00027397,2]
[400699674,1767783050703,-500.0,0.00027397,2]
[400699675,1767783050713,-500.0,0.00027397,2]
[400699676,1767783050723,-185.72944567,0.00027397,2]
[400699677,1767783050732,-500.0,0.00027397,2]
[400699678,1767783050742,-500.0,0.00027397,2]
[400699679,1767783050751,-399.37825281,0.00027397,2]
[400699680,1767783050760,-248.43549286,0.00027397,2]
[400699681,1767783050769,-500.0,0.00027397,2]
[400699682,1767783050778,-500.0,0.00027397,2]
[400699683,1767783050787,-500.0,0.00027397,2]
[400699684,1767783050797,-269.29132722,0.00027397,2]
[400699685,1767783050805,-500.0,0.00027397,2]
[400699686,1767783050815,-500.0,0.00027397,2]
[400699687,1767783050823,-500.0,0.00027397,2]
[400699688,1767783050833,-453.49823966,0.00027397,2]
[400699689,1767783050842,-500.0,0.00027397,2]
[400699690,1767783050851,-500.68429147,0.00027397,2]
[400699691,1767783050860,-500.0,0.00027397,2]
[400699692,1767783050870,-153.683464,0.00027397,7]
[400699693,1767783050879,-500.0,0.00027397,2]
[400699694,1767783050888,-500.0,0.00027397,2]
[400699695,1767783050897,-452.50526344,0.00027397,2]
[400699696,1767783050906,-484.89464713,0.00027397,2]
[400699697,1767783050915,-287.87151555,0.00027397,2]
[400699698,1767783050924,-500.0,0.00027397,2]
[400699699,1767783050933,-500.0,0.00027397,2]
[400699700,1767783050942,-500.0,0.00027397,2]
[400699701,1767783050951,-430.45190106,0.00027397,2]
[400699702,1767783050960,-500.0,0.00027397,2]
[400699703,1767783050969,-467.04427797,0.00027397,2]
[400699704,1767783050978,-208.00138522,0.00027397,2]
[400699705,1767783050988,-756.53,0.00027397,2]
[400699706,1767783050997,-500.0,0.00027397,2]
[400699707,1767783051006,-513.07286312,0.00027397,2]
[400699708,1767783051015,-500.0,0.00027397,2]
[400699709,1767783051024,-500.0,0.00027397,2]
[400699710,1767783051033,-500.0,0.00027397,2]
[400699711,1767783051042,-500.0,0.00027397,2]
[400699712,1767783051051,-500.0,0.00027397,2]
[400699713,1767783051060,-500.0,0.00027397,2]
[400699714,1767783051069,-500.0,0.00027397,2]
[400699715,1767783051078,-6464.25324285,0.00027397,2]
[400699716,1767783051087,-299.91358732,0.00027397,2]
[400699717,1767783051096,-505.81393525,0.00027397,2]
[400699718,1767783051106,-315.73155468,0.00027397,2]
[400699719,1767783051115,-536.67131664,0.00027397,2]
[400699720,1767783051124,-500.0,0.00027397,2]
[400699721,1767783051137,-500.0,0.00027397,2]
[400699722,1767783051146,-500.0,0.00027397,2]
[400699723,1767783051156,-494.14749146,0.00027397,2]
[400699724,1767783051165,-500.0,0.00027397,2]
[400699725,1767783051176,-500.0,0.00027397,2]
[400699726,1767783051188,-575.86198463,0.00027397,2]
[400699727,1767783051199,-523.62028016,0.00027397,2]
[400699728,1767783051210,-500.0,0.00027397,2]
[400699729,1767783051219,-500.0,0.00027397,2]
[400699730,1767783051229,-500.0,0.00027397,2]
[400699731,1767783051238,-500.0,0.00027397,2]
[400699732,1767783051247,-500.0,0.00027397,2]
[400699733,1767783051256,-500.0,0.00027397,2]
[400699734,1767783051266,-500.0,0.00027397,2]
[400699735,1767783051275,-523.60697497,0.00027397,2]
[400699736,1767783051285,-500.0,0.00027397,2]
[400699737,1767783051295,-836.74,0.00027397,2]
[400699738,1767783051304,-161.89891017,0.00027397,2]
[400699739,1767783051313,-278.39946279,0.00027397,2]
[400699740,1767783051322,-500.0,0.00027397,2]
[400699741,1767783051331,-500.0,0.00027397,2]
[400699742,1767783051340,-500.0,0.00027397,2]
[400699743,1767783051350,-500.0,0.00027397,2]
[400699744,1767783051360,-3962.5,0.00027397,2]
[400699745,1767783051378,-500.0,0.00027397,2]
[400699746,1767783051387,-500.0,0.00027397,2]
[400699747,1767783051397,-474.29098556,0.00027397,2]
[400699748,1767783051406,-500.0,0.00027397,2]
[400699749,1767783051415,-312.21609013,0.00027397,2]
[400699750,1767783051424,-500.0,0.00027397,2]
[400699751,1767783051434,-500.0,0.00027397,2]
[400699752,1767783051443,-371.09090696,0.00027397,2]
[400699753,1767783051452,-554.99626701,0.00027397,2]
[400699754,1767783051462,-500.0,0.00027397,2]
[400699755,1767783051471,-375.52520677,0.00027397,2]
[400699756,1767783051480,-531.43503261,0.00027397,2]
[400699757,1767783051489,-500.0,0.00027397,2]
[400699758,1767783051498,-500.0,0.00027397,2]
[400699759,1767783051507,-500.0,0.00027397,2]
[400699760,1767783051516,-500.0,0.00027397,2]
[400699761,1767783051526,-552.48388047,0.00027397,2]
[400699762,1767783051535,-500.0,0.00027397,2]
[400699763,1767783051545,-500.0,0.00027397,2]
[400699764,1767783051555,-500.0,0.00027397,2]
[400699765,1767783051565,-500.0,0.00027397,2]
[400699766,1767783051574,-500.0,0.00027397,2]
[400699767,1767783051584,-427.62515134,0.00027397,2]
[400699768,1767783051593,-422.20830435,0.00027397,2]
[400699769,1767783051603,-500.0,0.00027397,2]
[400699770,1767783051612,-500.0,0.00027397,2]
[400699771,1767783051623,-500.0,0.00027397,2]
[400699772,1767783051632,-500.0,0.00027397,2]
[400699773,1767783051641,-460.4,0.00027397,2]
[400699774,1767783051651,-502.52642032,0.00027397,2]
[400699775,1767783051661,-500.0,0.00027397,2]
[400699776,1767783051671,-440.46983605,0.00027397,2]
[400699777,1767783051680,-500.0,0.00027397,2]
[400699778,1767783051690,-500.0,0.00027397,2]
[400699779,1767783051699,-500.0,0.00027397,2]
[400699780,1767783051709,-500.0,0.00027397,2]
[400699781,1767783051718,-500.0,0.00027397,2]
[400699782,1767783051727,-500.0,0.00027397,2]
[400699783,1767783051737,-500.0,0.00027397,2]
[400699784,1767783051746,-423.19708612,0.00027397,2]
[400699785,1767783051755,-500.0,0.00027397,2]
[400699786,1767783051764,-500.0,0.00027397,2]
[400699787,1767783051773,-500.0,0.00027397,2]
[400699788,1767783051782,-500.0,0.00027397,2]
[400699789,1767783051791,-500.0,0.00027397,2]
[400699790,1767783051801,-500.0,0.00027397,2]
[400699791,1767783051811,-215.14710276,0.00027397,2]
[400699792,1767783051820,-500.0,0.00027397,2]
[400699793,1767783051829,-500.0,0.00027397,2]
[400699794,1767783051838,-221.99154029,0.00027397,2]
[400699795,1767783051848,-530.111159,0.00027397,7]
[400699796,1767783051858,-500.0,0.00027397,2]
[400699797,1767783051867,-500.0,0.00027397,2]
[400699798,1767783051876,-530.111159,0.00027397,7]
[400699799,1767783051885,-500.0,0.00027397,2]
[400699800,1767783051894,-500.0,0.00027397,2]
[400699801,1767783051904,-530.111159,0.00027397,7]
[400699802,1767783052034,-491.15587714,0.00027397,2]
[400699803,1767783052044,-500.0,0.00027397,2]
[400699804,1767783052053,-530.111159,0.00027397,7]
[400699805,1767783052063,-225.672265,0.00027397,7]
[400699806,1767783052072,-500.0,0.00027397,2]
[400699807,1767783052082,-225.672265,0.00027397,7]
[400699808,1767783052091,-500.0,0.00027397,2]
[400699809,1767783052100,-500.0,0.00027397,2]
[400699810,1767783052110,-225.672265,0.00027397,7]
[400699811,1767783052119,-500.0,0.00027397,2]
[400699812,1767783052130,-500.0,0.00027397,2]
[400699813,1767783052141,-225.672265,0.00027397,7]
[400699814,1767783052150,-500.0,0.00027397,2]
[400699815,1767783052160,-500.0,0.00027397,2]
[400699816,1767783052171,-171.93674001,0.00027397,2]
[400699817,1767783052180,-322.62449599,0.00027397,2]
[400699818,1767783052192,-500.0,0.00027397,2]
[400699819,1767783052204,-500.0,0.00027397,2]
[400699820,1767783052214,-500.0,0.00027397,2]
[400699821,1767783052223,-479.11138283,0.00027397,2]
[400699822,1767783052232,-500.0,0.00027397,2]
[400699823,1767783052242,-500.0,0.00027397,2]
[400699824,1767783052252,-956.27,0.00027397,2]
[400699825,1767783052262,-500.0,0.00027397,2]
[400699826,1767783052271,-299.23162821,0.00027397,2]
[400699827,1767783052280,-500.0,0.00027397,2]
[400699828,1767783052289,-500.0,0.00027397,2]
[400699829,1767783052299,-500.0,0.00027397,2]
[400699830,1767783052308,-200.11830071,0.00027397,2]
[400699831,1767783052317,-265.18668743,0.00027397,2]
[400699832,1767783052326,-184.812283,0.00027397,7]
[400699833,1767783052336,-184.812283,0.00027397,7]
[400699834,1767783052345,-500.0,0.00027397,2]
[400699835,1767783052354,-245.10460636,0.00027397,2]
[400699836,1767783052363,-500.0,0.00027397,2]
[400699837,1767783052373,-500.0,0.00027397,2]
[400699838,1767783052383,-184.812283,0.00027397,7]
[400699839,1767783052392,-500.0,0.00027397,2]
[400699840,1767783052401,-184.812283,0.00027397,7]
[400699841,1767783052410,-500.0,0.00027397,2]
[400699842,1767783052419,-578.09418574,0.00027397,2]
[400699843,1767783052429,-500.0,0.00027397,2]
[400699844,1767783052438,-500.0,0.00027397,2]
[400699845,1767783052447,-308.74291557,0.00027397,2]
[400699846,1767783052457,-500.0,0.00027397,2]
[400699847,1767783052466,-500.0,0.00027397,2]
[400699848,1767783052476,-500.0,0.00027397,2]
[400699849,1767783052486,-500.0,0.00027397,2]
[400699850,1767783052495,-500.0,0.00027397,2]
[400699851,1767783052505,-500.0,0.00027397,2]
[400699852,1767783052514,-500.0,0.00027397,2]
[400699853,1767783052522,-500.0,0.00027397,2]
[400699854,1767783052532,-678.0,0.00027397,2]
[400699855,1767783052541,-500.0,0.00027397,2]
[400699856,1767783052550,-500.0,0.00027397,2]
[400699857,1767783052559,-215.58317128,0.00027397,2]
[400699858,1767783052569,-500.0,0.00027397,2]
[400699859,1767783052578,-500.0,0.00027397,2]
[400699860,1767783052587,-500.0,0.00027397,2]
[400699861,1767783052596,-500.0,0.00027397,2]
[400699862,1767783052607,-1016.281206,0.00027397,7]
[400699863,1767783052617,-1016.281206,0.00027397,7]
[400699864,1767783052627,-500.0,0.00027397,2]
[400699865,1767783052636,-500.0,0.00027397,2]
[400699866,1767783052647,-500.0,0.00027397,2]
[400699867,1767783052655,-568.59240628,0.00027397,2]
[400699868,1767783052665,-1016.281206,0.00027397,7]
[400699869,1767783052675,-500.0,0.00027397,2]
[400699870,1767783052685,-1016.281206,0.00027397,7]
[400699871,1767783052695,-184.20155596,0.00027397,2]
[400699872,1767783052704,-14665.45,0.00027397,2]
[400699873,1767783052714,-151.0,0.00027397,7]
[400699874,1767783052725,-500.0,0.00027397,2]
[400699875,1767783052734,-247.352857,0.00027397,7]
[400699876,1767783052743,-500.0,0.00027397,2]
[400699877,1767783052754,-235.000047,0.00027397,7]
[400699878,1767783052763,-500.0,0.00027397,2]
[400699879,1767783052772,-4613.91,0.00027397,2]
[400699880,1767783052782,-247.352857,0.00027397,7]
[400699881,1767783052791,-927.69,0.00027397,2]
[400699882,1767783052800,-500.0,0.00027397,2]
[400699883,1767783052810,-247.352857,0.00027397,7]
[400699884,1767783052819,-500.0,0.00027397,2]
[400699885,1767783052828,-500.0,0.00027397,2]
[400699886,1767783052837,-247.352857,0.00027397,7]
[400699887,1767783052847,-500.0,0.00027397,2]
[400699888,1767783052856,-500.0,0.00027397,2]
[400699889,1767783052867,-500.0,0.00027397,2]
[400699890,1767783052877,-500.0,0.00027397,2]
[400699891,1767783052886,-490.48927619,0.00027397,2]
[400699892,1767783052896,-151.0,0.00027397,7]
[400699893,1767783052905,-500.0,0.00027397,2]
[400699894,1767783052916,-500.0,0.00027397,2]
[400699895,1767783052926,-500.0,0.00027397,2]
[400699896,1767783052938,-500.0,0.00027397,2]
[400699897,1767783052951,-500.0,0.00027397,2]
[400699898,1767783052961,-500.0,0.00027397,2]
[400699899,1767783052973,-500.0,0.00027397,2]
[400699900,1767783052984,-500.0,0.00027397,2]
[400699901,1767783052995,-151.0,0.00027397,7]
[400699902,1767783053006,-500.0,0.00027397,2]
[400699903,1767783053016,-211.52499438,0.00027397,2]
[400699904,1767783053026,-500.0,0.00027397,2]
[400699905,1767783053036,-151.0,0.00027397,7]
[400699906,1767783053046,-500.0,0.00027397,2]
[400699907,1767783053056,-590.74033955,0.00027397,2]
[400699908,1767783053067,-151.0,0.00027397,7]
[400699909,1767783053078,-500.0,0.00027397,2]
[400699910,1767783053089,-500.0,0.00027397,2]
[400699911,1767783053099,-500.0,0.00027397,2]
[400699912,1767783053110,-237.212667,0.00027397,7]
[400699913,1767783053120,-205.742012,0.00027397,7]
[400699914,1767783053131,-500.0,0.00027397,2]
[400699915,1767783053144,-512.07253337,0.00027397,2]
[400699916,1767783053155,-205.742012,0.00027397,7]
[400699917,1767783053167,-205.742012,0.00027397,7]
[400699918,1767783053186,-500.0,0.00027397,2]
[400699919,1767783053197,-500.0,0.00027397,2]
[400699920,1767783053208,-353.76874161,0.00027397,2]
[400699921,1767783053220,-205.742012,0.00027397,7]
[400699922,1767783053230,-500.0,0.00027397,2]
[400699923,1767783053240,-500.0,0.00027397,2]
[400699924,1767783053250,-151.0,0.00027397,7]
[400699925,1767783053260,-3024.23,0.00027397,2]
[400699926,1767783053271,-364.09358379,0.00027397,2]
[400699927,1767783053282,-500.0,0.00027397,2]